fUST/lending_fUST_20251210
["ID","MTS","AMOUNT","RATE_DAILY","PERIOD"]
[398026373,1765302653530,-162.0,0.00019491,2]
[398026374,1765302653540,-166.0,0.00019491,2]
[398026375,1765302653554,-152.0,0.00019491,2]
[398026376,1765302653564,-223.16077726,0.00019491,2]
[398026377,1765302653575,-166.0,0.00019491,2]
[398026378,1765302653586,-163.93476159,0.00019491,2]
[398026379,1765302653596,-334.0,0.00019491,2]
[398026380,1765302653607,-152.0,0.00019491,2]
[398026381,1765302653616,-334.0,0.00019491,2]
[398026382,1765302653627,-152.0,0.00019491,2]
[398026383,1765302653637,-334.0,0.00019491,2]
[398026384,1765302653647,-152.0,0.00019491,2]
[398026385,1765302653658,-334.0,0.00019491,2]
[398026386,1765302653668,-152.0,0.00019491,2]
[398026387,1765302653678,-334.0,0.00019491,2]
[398026388,1765302653689,-152.0,0.00019491,2]
[398026389,1765302653699,-334.0,0.00019491,2]
[398026390,1765302653709,-152.0,0.00019491,2]
[398026391,1765302653719,-334.0,0.00019491,2]
[398026392,1765302653729,-279.78499744,0.00019491,2]
[398026393,1765302653741,-334.0,0.00019491,2]
[398026394,1765302653751,-334.0,0.00019491,2]
[398026395,1765302653763,-334.0,0.00019491,2]
[398026396,1765302653773,-429.0867238,0.00019491,2]
[398026397,1765302653784,-7045.53,0.000195,2]
[398026398,1765302653795,-3533.13,0.000195,2]
[398026399,1765302653804,-3319.83,0.000195,2]
[398026400,1765302653815,-151.0,0.000195,2]
[398026401,1765302653826,-220.120643,0.000195,2]
[398026402,1765302653836,-220.120643,0.000195,2]
[398026403,1765302653847,-220.120643,0.000195,2]
[398026404,1765302653857,-220.120643,0.000195,2]
[398026405,1765302653867,-151.0,0.000195,2]
[398026406,1765302653878,-151.0,0.000195,2]
[398026407,1765302653888,-151.0,0.000195,2]
[398026408,1765302653898,-151.0,0.000195,2]
[398026409,1765302653909,-151.0,0.000195,2]
[398026410,1765302653919,-151.0,0.000195,2]
[398026411,1765302653929,-172.659327,0.000195,2]
[398026412,1765302653940,-172.659327,0.000195,2]
[398026413,1765302653950,-172.659327,0.000195,2]
[398026414,1765302653961,-172.659327,0.000195,2]
[398026415,1765302653971,-196.238409,0.000195,2]
[398026416,1765302653983,-196.238409,0.000195,2]
[398026417,1765302653994,-202.13816,0.000195,2]
[398026418,1765302654004,-196.238409,0.000195,2]
[398026419,1765302654015,-202.13816,0.000195,2]
[398026420,1765302654025,-196.238409,0.000195,2]
[398026421,1765302654036,-202.13816,0.000195,2]
[398026422,1765302654047,-202.13816,0.000195,2]
[398026423,1765302654058,-151.0,0.000195,2]
[398026424,1765302654069,-508.260792,0.000195,2]
[398026425,1765302654079,-508.260792,0.000195,2]
[398026426,1765302654090,-508.260792,0.000195,2]
[398026427,1765302654100,-508.260792,0.000195,2]
[398026428,1765302654110,-151.0,0.000195,2]
[398026429,1765302654121,-151.0,0.000195,2]
[398026430,1765302654131,-151.0,0.000195,2]
[398026431,1765302654143,-262.534051,0.000195,2]
[398026432,1765302654153,-151.0,0.000195,2]
[398026433,1765302654165,-151.0,0.000195,2]
[398026434,1765302654176,-151.0,0.000195,2]
[398026435,1765302654187,-329.167592,0.000195,2]
[398026436,1765302654198,-329.167592,0.000195,2]
[398026437,1765302654208,-329.167592,0.000195,2]
[398026438,1765302654219,-329.167602,0.000195,2]
[398026439,1765302654230,-250.066685,0.000195,2]
[398026440,1765302654240,-250.066685,0.000195,2]
[398026441,1765302654251,-250.066685,0.000195,2]
[398026442,1765302654263,-250.066677,0.000195,2]
[398026443,1765302654273,-161.090771,0.000195,2]
[398026444,1765302654283,-161.090771,0.000195,2]
[398026445,1765302654293,-161.090771,0.000195,2]
[398026446,1765302654304,-161.090762,0.000195,2]
[398026447,1765302654313,-875.408248,0.000195,2]
[398026448,1765302654323,-875.408248,0.000195,2]
[398026449,1765302654333,-875.408248,0.000195,2]
[398026450,1765302654343,-875.408257,0.000195,2]
[398026451,1765302654354,-280.112833,0.000195,2]
[398026452,1765302654364,-280.112833,0.000195,2]
[398026453,1765302654374,-280.112833,0.000195,2]
[398026454,1765302654388,-280.112827,0.000195,2]
[398026455,1765302654398,-151.0,0.000195,2]
[398026456,1765302654408,-151.0,0.000195,2]
[398026457,1765302654417,-151.0,0.000195,2]
[398026458,1765302654429,-151.0,0.000195,2]
[398026459,1765302654440,-291.943704,0.000195,2]
[398026460,1765302654451,-291.943704,0.000195,2]
[398026461,1765302654463,-291.943704,0.000195,2]
[398026462,1765302654473,-176.537843,0.000195,2]
[398026463,1765302654483,-291.943709,0.000195,2]
[398026464,1765302654494,-176.537843,0.000195,2]
[398026465,1765302654503,-176.537843,0.000195,2]
[398026466,1765302654513,-176.537835,0.000195,2]
[398026467,1765302654523,-151.0,0.000195,2]
[398026468,1765302654533,-151.0,0.000195,2]
[398026469,1765302654544,-174.867089,0.000195,2]
[398026470,1765302654553,-151.0,0.000195,2]
[398026471,1765302654563,-174.867089,0.000195,2]
[398026472,1765302654573,-151.0,0.000195,2]
[398026473,1765302654582,-174.867089,0.000195,2]
[398026474,1765302654592,-174.867088,0.000195,2]
[398026475,1765302654602,-151.0,0.000195,2]
[398026476,1765302654612,-151.0,0.000195,2]
[398026477,1765302654621,-558.83263411,0.00019511,2]
[398026478,1765302654631,-1005.8987414,0.00019511,2]
[398026479,1765302654640,-1788.26442916,0.00019511,2]
[398026480,1765302654650,-2791.3690074,0.00019511,2]
[398026481,1765302654660,-170.48823965,0.00019511,2]
[398026482,1765302654670,-681.95295862,0.00019511,2]
[398026483,1765302654679,-1534.39415689,0.00019511,2]
[398026484,1765302654690,-2727.81183446,0.00019511,2]
[398026485,1765302654700,-4257.94378536,0.00019511,2]
[398026486,1765302654710,-205.21206746,0.00019511,2]
[398026487,1765302654720,-369.01233971,0.00019511,2]
[398026488,1765302654729,-151.0,0.00019511,2]
[398026489,1765302654739,-151.0,0.00019511,2]
[398026490,1765302654749,-151.0,0.00019511,2]
[398026491,1765302654759,-151.0,0.00019511,2]
[398026492,1765302654769,-151.0,0.00019511,2]
[398026493,1765302654778,-151.0,0.00019511,2]
[398026494,1765302654788,-151.0,0.00019511,2]
[398026495,1765302654801,-222.918,0.00019511,2]
[398026496,1765302654813,-222.918,0.00019511,2]
[398026497,1765302654824,-634.8711583,0.00019511,2]
[398026498,1765302654835,-222.918,0.00019511,2]
[398026499,1765302654845,-1142.76808494,0.00019511,2]
[398026500,1765302654856,-222.918,0.00019511,2]
[398026501,1765302654866,-2031.58770656,0.00019511,2]
[398026502,1765302654877,-3174.35579151,0.00019511,2]
[398026503,1765302654887,-4571.07233977,0.00019511,2]
[398026504,1765302654900,-6215.515614,0.00019511,2]
[398026505,1765302654913,-180.25505239,0.00019511,2]
[398026506,1765302654924,-324.4590943,0.00019511,2]
[398026507,1765302654939,-576.81616764,0.00019511,2]
[398026508,1765302654950,-151.0,0.00019511,2]
[398026509,1765302654959,-560.964267,0.00019511,2]
[398026510,1765302654970,-560.964267,0.00019511,2]
[398026511,1765302654981,-361.143071,0.00019511,2]
[398026512,1765302654992,-560.964267,0.00019511,2]
[398026513,1765302655007,-361.143071,0.00019511,2]
[398026514,1765302655017,-560.964263,0.00019511,2]
[398026515,1765302655028,-361.143071,0.00019511,2]
[398026516,1765302655039,-361.143076,0.00019511,2]
[398026517,1765302655049,-180.023673,0.00019511,2]
[398026518,1765302655061,-174.286222,0.00019511,2]
[398026519,1765302655071,-174.286222,0.00019511,2]
[398026520,1765302655274,-174.286222,0.00019511,2]
[398026521,1765302655284,-174.286226,0.00019511,2]
[398026522,1765302655294,-235.981408,0.00019511,2]
[398026523,1765302655304,-235.981408,0.00019511,2]
[398026524,1765302655314,-235.981408,0.00019511,2]
[398026525,1765302655323,-235.981399,0.00019511,2]
[398026526,1765302655333,-151.244236,0.00019511,2]
[398026527,1765302655342,-235.237265,0.00019511,2]
[398026528,1765302655359,-151.0,0.00019511,2]
[398026529,1765302655369,-235.237265,0.00019511,2]
[398026530,1765302655384,-235.237265,0.00019511,2]
[398026531,1765302655394,-235.237257,0.00019511,2]
[398026532,1765302655404,-198.318029,0.00019524,2]
[398026533,1765302655414,-151.0,0.00019524,2]
[398026534,1765302655426,-151.0,0.00019524,2]
[398026535,1765302655437,-196.238409,0.00019524,2]
[398026536,1765302655447,-196.238409,0.00019524,2]
[398026537,1765302655458,-202.13816,0.00019524,2]
[398026538,1765302655467,-196.238409,0.00019524,2]
[398026539,1765302655476,-202.13816,0.00019524,2]
[398026540,1765302655486,-196.238401,0.00019524,2]
[398026541,1765302655500,-202.13816,0.00019524,2]
[398026542,1765302655509,-202.13815,0.00019524,2]
[398026543,1765302655519,-151.0,0.00019524,2]
[398026544,1765302655529,-508.260792,0.00019524,2]
[398026545,1765302655539,-508.260792,0.00019524,2]
[398026546,1765302655548,-508.260792,0.00019524,2]
[398026547,1765302655557,-508.260784,0.00019524,2]
[398026548,1765302655566,-151.0,0.00019524,2]
[398026549,1765302655575,-151.0,0.00019524,2]
[398026550,1765302655585,-151.0,0.00019524,2]
[398026551,1765302655594,-151.0,0.00019524,2]
[398026552,1765302655603,-151.0,0.00019524,2]
[398026553,1765302655613,-151.0,0.00019524,2]
[398026554,1765302655624,-2000.0,0.00019582,2]
[398026555,1765302655634,-305.848,0.00019582,2]
[398026556,1765302655643,-514.474,0.00019582,2]
[398026557,1765302655653,-1000.0,0.00019582,2]
[398026558,1765302655662,-1000.0,0.00019582,2]
[398026559,1765302655671,-1000.0,0.00019582,2]
[398026560,1765302655680,-1000.0,0.00019582,2]
[398026561,1765302655691,-1000.0,0.00019582,2]
[398026562,1765302655700,-1000.0,0.00019582,2]
[398026563,1765302655709,-1000.0,0.00019582,2]
[398026564,1765302655719,-1000.0,0.00019582,2]
[398026565,1765302655728,-1000.0,0.00019582,2]
[398026566,1765302655737,-178.466,0.00019582,2]
[398026567,1765302655747,-475.0,0.00019582,2]
[398026568,1765302655756,-475.0,0.00019582,2]
[398026569,1765302655766,-475.0,0.00019582,2]
[398026570,1765302655775,-475.0,0.00019582,2]
[398026571,1765302655785,-475.0,0.00019582,2]
[398026572,1765302655796,-475.0,0.00019582,2]
[398026573,1765302655806,-475.0,0.00019582,2]
[398026574,1765302655815,-475.0,0.00019582,2]
[398026575,1765302655825,-475.0,0.00019582,2]
[398026576,1765302655835,-475.0,0.00019582,2]
[398026577,1765302655844,-475.0,0.00019582,2]
[398026578,1765302655854,-475.0,0.00019582,2]
[398026579,1765302655863,-475.0,0.00019582,2]
[398026580,1765302655873,-475.0,0.00019582,2]
[398026581,1765302655882,-475.0,0.00019582,2]
[398026582,1765302655891,-475.0,0.00019582,2]
[398026583,1765302655900,-475.0,0.00019582,2]
[398026584,1765302655910,-475.0,0.00019582,2]
[398026585,1765302655919,-475.0,0.00019582,2]
[398026586,1765302655929,-475.0,0.00019582,2]
[398026587,1765302655939,-475.0,0.00019582,2]
[398026588,1765302655948,-475.0,0.00019582,2]
[398026589,1765302655958,-475.0,0.00019582,2]
[398026590,1765302655969,-475.0,0.00019582,2]
[398026591,1765302655979,-475.0,0.00019582,2]
[398026592,1765302655990,-475.0,0.00019582,2]
[398026593,1765302656000,-475.0,0.00019582,2]
[398026594,1765302656011,-475.0,0.00019582,2]
[398026595,1765302656023,-151.0,0.00019582,2]
[398026596,1765302656032,-151.0,0.00019582,2]
[398026597,1765302656042,-151.0,0.00019582,2]
[398026598,1765302656053,-151.0,0.00019582,2]
[398026599,1765302656064,-151.0,0.00019582,2]
[398026600,1765302656073,-151.0,0.00019582,2]
[398026601,1765302656084,-151.0,0.00019582,2]
[398026602,1765302656095,-151.0,0.00019582,2]
[398026603,1765302656106,-157.023811,0.00019582,2]
[398026604,1765302656118,-233.616259,0.00019582,2]
[398026605,1765302656129,-233.616259,0.00019582,2]
[398026606,1765302656139,-233.616259,0.00019582,2]
[398026607,1765302656149,-233.616259,0.00019582,2]
[398026608,1765302656160,-151.0,0.00019582,2]
[398026609,1765302656171,-151.0,0.00019582,2]
[398026610,1765302656184,-151.0,0.00019582,2]
[398026611,1765302656194,-151.0,0.00019582,2]
[398026612,1765302656204,-151.0,0.00019582,2]
[398026613,1765302656213,-193.207712,0.00019582,2]
[398026614,1765302656223,-193.207712,0.00019582,2]
[398026615,1765302656232,-193.207712,0.00019582,2]
[398026616,1765302656242,-193.207712,0.00019582,2]
[398026617,1765302656251,-151.0,0.00019582,2]
[398026618,1765302656261,-151.0,0.00019582,2]
[398026619,1765302656271,-151.0,0.00019582,2]
[398026620,1765302656281,-198.073479,0.00019582,2]
[398026621,1765302656291,-151.0,0.00019582,2]
[398026622,1765302656300,-151.0,0.00019582,2]
[398026623,1765302656310,-151.0,0.00019582,2]
[398026624,1765302656319,-151.0,0.00019582,2]
[398026625,1765302656328,-151.0,0.00019582,2]
[398026626,1765302656338,-151.0,0.00019582,2]
[398026627,1765302656347,-151.0,0.00019582,2]
[398026628,1765302656357,-158.572856,0.00019582,2]
[398026629,1765302656366,-365.894645,0.00019582,2]
[398026630,1765302656376,-365.894645,0.00019582,2]
[398026631,1765302656388,-365.894645,0.00019582,2]
[398026632,1765302656397,-365.894645,0.00019582,2]
[398026633,1765302656407,-151.0,0.00019582,2]
[398026634,1765302656416,-151.0,0.00019582,2]
[398026635,1765302656428,-174.361171,0.00019582,2]
[398026636,1765302656438,-172.888954,0.00019582,2]
[398026637,1765302656448,-172.888954,0.00019582,2]
[398026638,1765302656459,-172.888954,0.00019582,2]
[398026639,1765302656468,-172.888954,0.00019582,2]
[398026640,1765302656477,-202.590626,0.00019582,2]
[398026641,1765302656486,-202.590626,0.00019582,2]
[398026642,1765302656496,-202.590626,0.00019582,2]
[398026643,1765302656505,-202.590626,0.00019582,2]
[398026644,1765302656514,-251.953447,0.00019582,2]
[398026645,1765302656524,-251.953447,0.00019582,2]
[398026646,1765302656533,-251.953447,0.00019582,2]
[398026647,1765302656542,-251.953447,0.00019582,2]
[398026648,1765302656551,-151.0,0.00019582,2]
[398026649,1765302656560,-151.0,0.00019582,2]
[398026650,1765302656570,-279.867799,0.00019582,2]
[398026651,1765302656579,-227.259374,0.00019582,2]
[398026652,1765302656588,-220.120643,0.00019582,2]
[398026653,1765302656597,-220.120643,0.00019582,2]
[398026654,1765302656607,-220.120643,0.00019582,2]
[398026655,1765302656616,-220.120643,0.00019582,2]
[398026656,1765302656626,-151.0,0.00019582,2]
[398026657,1765302656636,-151.0,0.00019582,2]
[398026658,1765302656646,-151.0,0.00019582,2]
[398026659,1765302656655,-151.0,0.00019582,2]
[398026660,1765302656665,-151.0,0.00019582,2]
[398026661,1765302656674,-151.0,0.00019582,2]
[398026662,1765302656684,-172.659327,0.00019582,2]
[398026663,1765302656694,-172.659327,0.00019582,2]
[398026664,1765302656703,-172.659327,0.00019582,2]
[398026665,1765302656712,-172.659327,0.00019582,2]
[398026666,1765302656721,-259.325539,0.00019582,2]
[398026667,1765302656731,-259.325539,0.00019582,2]
[398026668,1765302656742,-259.325539,0.00019582,2]
[398026669,1765302656751,-259.325539,0.00019582,2]
[398026670,1765302656761,-259.325539,0.00019582,2]
[398026671,1765302656770,-259.325539,0.00019582,2]
[398026672,1765302656780,-259.325539,0.00019582,2]
[398026673,1765302656789,-259.325547,0.00019582,2]
[398026674,1765302656799,-151.0,0.00019582,2]
[398026675,1765302656808,-151.0,0.00019582,2]
[398026676,1765302656817,-151.0,0.00019582,2]
[398026677,1765302656827,-151.0,0.00019582,2]
[398026678,1765302656836,-151.0,0.00019582,2]
[398026679,1765302656846,-151.0,0.00019582,2]
[398026680,1765302656855,-151.0,0.00019582,2]
[398026681,1765302656864,-151.0,0.00019582,2]
[398026682,1765302656873,-222.918,0.00019582,2]
[398026683,1765302656882,-222.918,0.00019582,2]
[398026684,1765302656892,-222.918,0.00019582,2]
[398026685,1765302656901,-222.918,0.00019582,2]
[398026686,1765302656910,-287.715144,0.00019582,2]
[398026687,1765302656919,-151.258637,0.00019608,2]
[398026688,1765302656928,-151.0,0.00019608,2]
[398026689,1765302656938,-172.888954,0.00019608,2]
[398026690,1765302656947,-172.888954,0.00019608,2]
[398026691,1765302656956,-172.888954,0.00019608,2]
[398026692,1765302656965,-172.888954,0.00019608,2]
[398026693,1765302656974,-202.590626,0.00019608,2]
[398026694,1765302656984,-202.590626,0.00019608,2]
[398026695,1765302656993,-202.590626,0.00019608,2]
[398026696,1765302657002,-202.590626,0.00019608,2]
[398026697,1765302657011,-251.953447,0.00019608,2]
[398026698,1765302657020,-251.953447,0.00019608,2]
[398026699,1765302657030,-251.953447,0.00019608,2]
[398026700,1765302657039,-251.953447,0.00019608,2]
[398026701,1765302657048,-151.0,0.00019608,2]
[398026702,1765302657058,-151.0,0.00019626,2]
[398026703,1765302657067,-151.0,0.00019626,2]
[398026704,1765302657076,-151.0,0.00019626,2]
[398026705,1765302657086,-151.0,0.00019626,2]
[398026706,1765302657095,-151.0,0.00019626,2]
[398026707,1765302657105,-151.0,0.00019626,2]
[398026708,1765302657114,-151.0,0.00019626,2]
[398026709,1765302657124,-151.0,0.00019626,2]
[398026710,1765302657133,-233.616259,0.00019626,2]
[398026711,1765302657143,-233.616259,0.00019626,2]
[398026712,1765302657152,-233.616259,0.00019626,2]
[398026713,1765302657162,-233.616259,0.00019626,2]
[398026714,1765302657171,-154.559889,0.00019626,2]
[398026715,1765302657180,-151.0,0.00019626,2]
[398026716,1765302657191,-151.0,0.00019626,2]
[398026717,1765302657200,-151.0,0.00019626,2]
[398026718,1765302657210,-165.505245,0.00019626,2]
[398026719,1765302657220,-193.207712,0.00019626,2]
[398026720,1765302657229,-193.207712,0.00019626,2]
[398026721,1765302657237,-193.207712,0.00019626,2]
[398026722,1765302657248,-193.207712,0.00019626,2]
[398026723,1765302657257,-151.0,0.00019626,2]
[398026724,1765302657266,-151.0,0.00019626,2]
[398026725,1765302657275,-151.0,0.00019626,2]
[398026726,1765302657285,-151.0,0.00019626,2]
[398026727,1765302657294,-151.0,0.00019626,2]
[398026728,1765302657304,-151.0,0.00019626,2]
[398026729,1765302657313,-151.0,0.00019626,2]
[398026730,1765302657322,-151.0,0.00019626,2]
[398026731,1765302657331,-151.0,0.00019626,2]
[398026732,1765302657340,-151.0,0.00019626,2]
[398026733,1765302657350,-365.894645,0.00019626,2]
[398026734,1765302657360,-365.894645,0.00019626,2]
[398026735,1765302657370,-365.894645,0.00019626,2]
[398026736,1765302657388,-365.894645,0.00019626,2]
[398026737,1765302657398,-151.0,0.00019626,2]
[398026738,1765302657408,-151.0,0.00019626,2]
[398026739,1765302657417,-151.0,0.00019626,2]
[398026740,1765302657427,-172.659327,0.00019626,2]
[398026741,1765302657438,-172.659327,0.00019626,2]
[398026742,1765302657447,-172.659327,0.00019626,2]
[398026743,1765302657457,-172.659323,0.00019626,2]
[398026744,1765302657467,-151.0,0.00019626,2]
[398026745,1765302657477,-151.0,0.00019626,2]
[398026746,1765302657486,-151.0,0.00019626,2]
[398026747,1765302657496,-151.0,0.00019626,2]
[398026748,1765302657506,-151.0,0.00019626,2]
[398026749,1765302657515,-151.0,0.00019626,2]
[398026750,1765302657525,-222.918,0.00019626,2]
[398026751,1765302657535,-222.918,0.00019626,2]
[398026752,1765302657545,-222.918,0.00019626,2]
[398026753,1765302657555,-222.918,0.00019626,2]
[398026754,1765302657567,-151.0,0.00019635,2]
[398026755,1765302657576,-220.120643,0.00019635,2]
[398026756,1765302657586,-220.120643,0.00019635,2]
[398026757,1765302657595,-220.120643,0.00019635,2]
[398026758,1765302657604,-220.120643,0.00019635,2]
[398026759,1765302657613,-151.0,0.00019635,2]
[398026760,1765302657623,-151.0,0.00019635,2]
[398026761,1765302657631,-151.0,0.00019635,2]
[398026762,1765302657641,-248.267728,0.00019652,2]
[398026763,1765302657650,-151.0,0.00019652,2]
[398026764,1765302657659,-172.888954,0.00019652,2]
[398026765,1765302657668,-172.888954,0.00019652,2]
[398026766,1765302657678,-172.888954,0.00019652,2]
[398026767,1765302657688,-172.888954,0.00019652,2]
[398026768,1765302657697,-202.590626,0.00019652,2]
[398026769,1765302657706,-202.590626,0.00019652,2]
[398026770,1765302657716,-202.590626,0.00019652,2]
[398026771,1765302657725,-202.590626,0.00019652,2]
[398026772,1765302657736,-251.953447,0.00019652,2]
[398026773,1765302657751,-251.953447,0.00019652,2]
[398026774,1765302657760,-251.953447,0.00019652,2]
[398026775,1765302657769,-251.953447,0.00019652,2]
[398026776,1765302657779,-151.0,0.00019652,2]
[398026777,1765302657789,-373.494,0.00019656,2]
[398026778,1765302657798,-302.90913937,0.00019656,2]
[398026779,1765302657807,-5888.0,0.00019669,2]
[398026780,1765302657816,-151.0,0.00019681,2]
[398026781,1765302657826,-151.0,0.00019681,2]
[398026782,1765302657835,-151.0,0.00019681,2]
[398026783,1765302657844,-192.106122,0.00019681,2]
[398026784,1765302657854,-151.0,0.00019681,2]
[398026785,1765302657863,-151.0,0.00019681,2]
[398026786,1765302657872,-151.0,0.00019681,2]
[398026787,1765302657882,-233.616259,0.00019681,2]
[398026788,1765302657891,-233.616259,0.00019681,2]
[398026789,1765302657901,-233.616259,0.00019681,2]
[398026790,1765302657911,-233.616259,0.00019681,2]
[398026791,1765302657921,-151.0,0.00019681,2]
[398026792,1765302657931,-151.0,0.00019681,2]
[398026793,1765302657941,-151.0,0.00019681,2]
[398026794,1765302657951,-193.207712,0.00019681,2]
[398026795,1765302657960,-193.207712,0.00019681,2]
[398026796,1765302657970,-193.207712,0.00019681,2]
[398026797,1765302657979,-193.207712,0.00019681,2]
[398026798,1765302657988,-151.0,0.00019681,2]
[398026799,1765302657997,-151.0,0.00019681,2]
[398026800,1765302658006,-151.0,0.00019681,2]
[398026801,1765302658016,-151.0,0.00019681,2]
[398026802,1765302658025,-151.0,0.00019681,2]
[398026803,1765302658034,-151.0,0.00019681,2]
[398026804,1765302658044,-255.903026,0.00019681,2]
[398026805,1765302658053,-151.0,0.00019681,2]
[398026806,1765302658063,-151.0,0.00019681,2]
[398026807,1765302658073,-151.0,0.00019681,2]
[398026808,1765302658083,-365.894645,0.00019681,2]
[398026809,1765302658093,-365.894645,0.00019681,2]
[398026810,1765302658103,-365.894645,0.00019681,2]
[398026811,1765302658112,-365.894645,0.00019681,2]
[398026812,1765302658123,-212.8317,0.00019681,2]
[398026813,1765302658133,-220.120643,0.00019681,2]
[398026814,1765302658144,-220.120643,0.00019681,2]
[398026815,1765302658154,-220.120643,0.00019681,2]
[398026816,1765302658164,-220.120645,0.00019681,2]
[398026817,1765302658173,-151.0,0.00019681,2]
[398026818,1765302658183,-151.0,0.00019681,2]
[398026819,1765302658193,-151.0,0.00019681,2]
[398026820,1765302658203,-5888.0,0.00019681,2]
[398026821,1765302658213,-760.0,0.00019691,2]
[398026822,1765302658222,-1250.0,0.00019693,2]
[398026823,1765302658232,-2697.12,0.000197,2]
[398026824,1765302658242,-13916.32,0.000197,3]
[398026825,1765302658251,-511.28,0.00019726,2]
[398026826,1765302658261,-1250.0,0.00019754,2]
[398026827,1765302658270,-151.0,0.0001977,2]
[398026828,1765302658280,-172.888954,0.0001977,2]
[398026829,1765302658289,-172.888954,0.0001977,2]
[398026830,1765302658299,-172.888954,0.0001977,2]
[398026831,1765302658309,-172.888959,0.0001977,2]
[398026832,1765302658320,-202.590626,0.0001977,2]
[398026833,1765302658329,-202.590626,0.0001977,2]
[398026834,1765302658339,-202.590626,0.0001977,2]
[398026835,1765302658348,-202.590619,0.0001977,2]
[398026836,1765302658358,-251.953447,0.0001977,2]
[398026837,1765302658367,-251.953447,0.0001977,2]
[398026838,1765302658377,-251.953447,0.0001977,2]
[398026839,1765302658390,-251.953451,0.0001977,2]
[398026840,1765302658400,-151.0,0.0001977,2]
[398026841,1765302658409,-1250.0,0.00019813,2]
[398026842,1765302658419,-248.267727,0.00019813,2]
[398026843,1765302658428,-151.0,0.00019816,2]
[398026844,1765302658439,-151.0,0.00019816,2]
[398026845,1765302658448,-365.894645,0.00019816,2]
[398026846,1765302658459,-365.894645,0.00019816,2]
[398026847,1765302658469,-365.894645,0.00019816,2]
[398026848,1765302658478,-365.894636,0.00019816,2]
[398026849,1765302658488,-454.36370906,0.00019845,4]
[398026850,1765302658497,-600.0,0.00019879,10]
[398026851,1765302658507,-553.64373807,0.00019881,2]
[398026852,1765302658516,-1150.79554786,0.00019881,2]
[398026853,1765302658526,-1250.0,0.00019908,2]
[398026854,1765302658535,-151.0,0.00019932,2]
[398026855,1765302658697,-151.0,0.00019932,2]
[398026856,1765302658707,-151.0,0.00019932,2]
[398026857,1765302658717,-151.0,0.00019932,2]
[398026858,1765302658726,-151.0,0.00019932,2]
[398026859,1765302658736,-151.0,0.00019932,2]
[398026860,1765302658746,-233.616259,0.00019932,2]
[398026861,1765302658756,-233.616259,0.00019932,2]
[398026862,1765302658766,-233.616259,0.00019932,2]
[398026863,1765302658775,-233.616259,0.00019932,2]
[398026864,1765302658784,-5888.0,0.00019932,2]
[398026865,1765302658794,-1250.0,0.00019965,2]
[398026866,1765302658803,-2000.0,0.00019999,3]
[398026867,1765302658813,-5000.0,0.0002,2]
[398026868,1765302658823,-17888.14531386,0.0002,2]
[398026869,1765302658832,-170.18441434,0.0002,2]
[398026870,1765302658841,-168.2300853,0.0002,2]
[398026871,1765302658851,-360.47895186,0.0002,2]
[398026872,1765302658862,-215.94994158,0.0002,2]